[Event "Titled Tuesday Blitz March 29 Early 2022"]
[White "Tanenbaum, Zachary"]
[Black "Omelja, Artem"]
[WhiteFideId "2060850"]
[BlackFideId "14119846"]
[WhiteElo "2168"]
[BlackElo "2382"]
[Result "1-0"]
[Round "11"]
[TimeControl "180+1"]
[Date "2022.03.29"]
[WhiteClock "0:00:49"]
[BlackClock "0:00:01"]

1. e4 {[%clk 0:02:59]}  c5 {[%clk 0:02:59]} 2. Nf3 {[%clk 0:02:59]}  e6 {[%clk 0:02:59]} 3. d4 {[%clk 0:03:00]}  cxd4 {[%clk 0:03:00]} 4. Nxd4 {[%clk 0:03:00]}  Nf6 {[%clk 0:03:01]} 5. Nc3 {[%clk 0:03:00]}  a6 {[%clk 0:02:59]} 6. Be3 {[%clk 0:02:43]}  b5 {[%clk 0:02:56]} 7. f3 {[%clk 0:02:40]}  Bb7 {[%clk 0:02:54]} 8. Qd2 {[%clk 0:02:39]}  Nc6 {[%clk 0:02:48]} 9. O-O-O {[%clk 0:02:38]}  Be7 {[%clk 0:02:38]} 10. g4 {[%clk 0:02:38]}  Rc8 {[%clk 0:02:36]} 11. g5 {[%clk 0:02:36]}  Nh5 {[%clk 0:02:32]} 12. Bd3 {[%clk 0:02:16]}  Nb4 {[%clk 0:01:37]} 13. Kb1 {[%clk 0:02:10]}  O-O {[%clk 0:01:29]} 14. f4 {[%clk 0:02:06]}  Nxd3 {[%clk 0:01:13]} 15. cxd3 {[%clk 0:02:05]}  d5 {[%clk 0:01:05]} 16. e5 {[%clk 0:02:01]}  Bb4 {[%clk 0:00:41]} 17. Qe2 {[%clk 0:01:52]}  g6 {[%clk 0:00:34]} 18. Rc1 {[%clk 0:01:32]}  Ng7 {[%clk 0:00:20]} 19. Bd2 {[%clk 0:01:15]}  Qb6 {[%clk 0:00:17]} 20. Qe3 {[%clk 0:01:05]}  Bc5 {[%clk 0:00:14]} 21. Nce2 {[%clk 0:01:06]}  Nf5 {[%clk 0:00:13]} 22. Nxf5 {[%clk 0:01:02]}  Bxe3 {[%clk 0:00:13]} 23. Bxe3 {[%clk 0:01:02]}  Rxc1+ {[%clk 0:00:06]} 24. Rxc1 {[%clk 0:01:02]}  Qd8 {[%clk 0:00:04]} 25. Nd6 {[%clk 0:00:54]}  Qd7 {[%clk 0:00:04]} 26. Bb6 {[%clk 0:00:52]}  Bc6 {[%clk 0:00:02]} 27. Nd4 {[%clk 0:00:53]}  Rb8 {[%clk 0:00:01]} 28. Rxc6 {[%clk 0:00:52]}  Kg7 {[%clk 0:00:01]} 29. Rc7 {[%clk 0:00:49]} 1-0


[Site "https://www.chess.com"]

[Event "Titled Tuesday Blitz March 29 Early 2022"]
[White "Tsyhanchuk, Stanislav"]
[Black "Mirzoev, Azer"]
[WhiteFideId "13505130"]
[BlackFideId "13400304"]
[WhiteElo "2078"]
[BlackElo "2525"]
[Result "0-1"]
[Round "11"]
[TimeControl "180+1"]
[Date "2022.03.29"]
[WhiteClock "0:00:02"]
[BlackClock "0:00:16"]

1. e4 {[%clk 0:02:12]}  c5 {[%clk 0:02:59]} 2. Nf3 {[%clk 0:02:11]}  e6 {[%clk 0:02:58]} 3. d4 {[%clk 0:02:12]}  cxd4 {[%clk 0:02:59]} 4. Nxd4 {[%clk 0:02:13]}  a6 {[%clk 0:02:59]} 5. Bd3 {[%clk 0:02:12]}  Nc6 {[%clk 0:02:59]} 6. Nxc6 {[%clk 0:02:11]}  bxc6 {[%clk 0:03:00]} 7. O-O {[%clk 0:02:08]}  d5 {[%clk 0:03:00]} 8. Nd2 {[%clk 0:02:07]}  Nf6 {[%clk 0:02:59]} 9. c4 {[%clk 0:02:00]}  Be7 {[%clk 0:02:59]} 10. Qe2 {[%clk 0:01:59]}  O-O {[%clk 0:02:57]} 11. b3 {[%clk 0:01:56]}  a5 {[%clk 0:02:58]} 12. f4 {[%clk 0:01:51]}  a4 {[%clk 0:02:57]} 13. Bb2 {[%clk 0:01:08]}  Bb7 {[%clk 0:02:39]} 14. Kh1 {[%clk 0:01:06]}  axb3 {[%clk 0:02:16]} 15. axb3 {[%clk 0:01:07]}  Rxa1 {[%clk 0:02:12]} 16. Bxa1 {[%clk 0:01:08]}  Qc7 {[%clk 0:01:54]} 17. f5 {[%clk 0:01:02]}  exf5 {[%clk 0:01:45]} 18. Rxf5 {[%clk 0:00:54]}  Bc8 {[%clk 0:01:44]} 19. Rf1 {[%clk 0:00:53]}  dxc4 {[%clk 0:01:43]} 20. bxc4 {[%clk 0:00:49]}  Be6 {[%clk 0:01:32]} 21. e5 {[%clk 0:00:45]}  Nd7 {[%clk 0:01:32]} 22. Nf3 {[%clk 0:00:32]}  Nc5 {[%clk 0:01:23]} 23. Bc2 {[%clk 0:00:31]}  g6 {[%clk 0:01:20]} 24. Nd4 {[%clk 0:00:29]}  Qd7 {[%clk 0:01:14]} 25. Nxe6 {[%clk 0:00:25]}  Qxe6 {[%clk 0:01:12]} 26. Bb2 {[%clk 0:00:21]}  Rd8 {[%clk 0:01:09]} 27. h3 {[%clk 0:00:16]}  Ra8 {[%clk 0:00:56]} 28. Ra1 {[%clk 0:00:12]}  Rxa1+ {[%clk 0:00:55]} 29. Bxa1 {[%clk 0:00:13]}  Qc8 {[%clk 0:00:54]} 30. Bc3 {[%clk 0:00:11]}  Ne6 {[%clk 0:00:54]} 31. Be4 {[%clk 0:00:07]}  Qa6 {[%clk 0:00:53]} 32. Kh2 {[%clk 0:00:05]}  Qa4 {[%clk 0:00:52]} 33. Qf3 {[%clk 0:00:03]}  Ng5 {[%clk 0:00:51]} 34. Qd3 {[%clk 0:00:03]}  Nxe4 {[%clk 0:00:50]} 35. Qxe4 {[%clk 0:00:04]}  Qb3 {[%clk 0:00:48]} 36. Be1 {[%clk 0:00:02]}  Qd1 {[%clk 0:00:47]} 37. Bg3 {[%clk 0:00:01]}  Qd7 {[%clk 0:00:46]} 38. h4 {[%clk 0:00:01]}  h5 {[%clk 0:00:46]} 39. Qf3 {[%clk 0:00:01]}  Qe6 {[%clk 0:00:46]} 40. Qe4 {[%clk 0:00:01]}  Bf8 {[%clk 0:00:45]} 41. Qf3 {[%clk 0:00:01]}  Bg7 {[%clk 0:00:45]} 42. Qe4 {[%clk 0:00:02]}  Kh7 {[%clk 0:00:46]} 43. Qf4 {[%clk 0:00:02]}  Bh6 {[%clk 0:00:45]} 44. Qe4 {[%clk 0:00:02]}  Bf8 {[%clk 0:00:43]} 45. Bf2 {[%clk 0:00:02]}  Be7 {[%clk 0:00:42]} 46. Bg3 {[%clk 0:00:02]}  Kg8 {[%clk 0:00:42]} 47. Bf2 {[%clk 0:00:03]}  Kg7 {[%clk 0:00:42]} 48. Bg3 {[%clk 0:00:03]}  Qd7 {[%clk 0:00:42]} 49. Bf2 {[%clk 0:00:04]}  Kf8 {[%clk 0:00:38]} 50. Bg3 {[%clk 0:00:04]}  Ke8 {[%clk 0:00:38]} 51. Qf4 {[%clk 0:00:04]}  Qf5 {[%clk 0:00:36]} 52. Qe3 {[%clk 0:00:03]}  Qg4 {[%clk 0:00:34]} 53. Qb6 {[%clk 0:00:02]}  Qd7 {[%clk 0:00:33]} 54. Qb8+ {[%clk 0:00:01]}  Bd8 {[%clk 0:00:31]} 55. Qa8 {[%clk 0:00:01]}  Ke7 {[%clk 0:00:30]} 56. Qa4 {[%clk 0:00:02]}  Ke6 {[%clk 0:00:28]} 57. Qa3 {[%clk 0:00:02]}  Qd4 {[%clk 0:00:16]} 0-1


[Site "https://www.chess.com"]

[Event "Titled Tuesday Blitz March 29 Early 2022"]
[White "Wu, Sibo"]
[Black "Golubev, Mikhail"]
[WhiteFideId "8606048"]
[BlackFideId "14100983"]
[WhiteElo "2331"]
[BlackElo "2374"]
[Result "0-1"]
[Round "11"]
[TimeControl "180+1"]
[Date "2022.03.30"]
[WhiteClock "0:00:03"]
[BlackClock "0:00:11"]

1. d4 {[%clk 0:03:00]}  a6 {[%clk 0:02:59]} 2. Bf4 {[%clk 0:03:00]}  b5 {[%clk 0:02:57]} 3. e3 {[%clk 0:02:59]}  Bb7 {[%clk 0:02:57]} 4. Nf3 {[%clk 0:02:59]}  Nf6 {[%clk 0:02:56]} 5. Bd3 {[%clk 0:02:59]}  e6 {[%clk 0:02:55]} 6. c3 {[%clk 0:03:00]}  c5 {[%clk 0:02:55]} 7. Nbd2 {[%clk 0:02:59]}  Nc6 {[%clk 0:02:50]} 8. h4 {[%clk 0:02:51]}  Be7 {[%clk 0:02:47]} 9. h5 {[%clk 0:02:51]}  h6 {[%clk 0:02:47]} 10. Qe2 {[%clk 0:02:45]}  d5 {[%clk 0:02:35]} 11. Ne5 {[%clk 0:02:44]}  c4 {[%clk 0:02:33]} 12. Bc2 {[%clk 0:02:41]}  b4 {[%clk 0:02:10]} 13. Ba4 {[%clk 0:02:11]}  Rc8 {[%clk 0:02:09]} 14. Ndf3 {[%clk 0:02:04]}  Ne4 {[%clk 0:02:02]} 15. Qc2 {[%clk 0:01:50]}  O-O {[%clk 0:01:54]} 16. g4 {[%clk 0:01:31]}  Qa5 {[%clk 0:01:49]} 17. Bxc6 {[%clk 0:01:28]}  Bxc6 {[%clk 0:01:50]} 18. g5 {[%clk 0:01:15]}  bxc3 {[%clk 0:01:49]} 19. Kf1 {[%clk 0:01:10]}  Ba4 {[%clk 0:01:44]} 20. b3 {[%clk 0:01:08]}  cxb3 {[%clk 0:01:37]} 21. axb3 {[%clk 0:01:09]}  Qb5+ {[%clk 0:01:35]} 22. Kg2 {[%clk 0:01:04]}  Qxb3 {[%clk 0:01:31]} 23. Qe2 {[%clk 0:00:58]}  Qb2 {[%clk 0:01:27]} 24. Qxa6 {[%clk 0:00:41]}  Qxf2+ {[%clk 0:01:23]} 25. Kh3 {[%clk 0:00:40]}  Bc2 {[%clk 0:00:56]} 26. Rh2 {[%clk 0:00:40]}  Nxg5+ {[%clk 0:00:52]} 27. Nxg5 {[%clk 0:00:37]}  Bf5+ {[%clk 0:00:50]} 28. Ng4 {[%clk 0:00:35]}  Qxh2+ {[%clk 0:00:18]} 29. Bxh2 {[%clk 0:00:25]}  Bxg5 {[%clk 0:00:18]} 30. Bf4 {[%clk 0:00:19]}  Bxf4 {[%clk 0:00:18]} 31. exf4 {[%clk 0:00:19]}  c2 {[%clk 0:00:18]} 32. Rc1 {[%clk 0:00:19]}  Rb8 {[%clk 0:00:18]} 33. Qa3 {[%clk 0:00:15]}  Rb1 {[%clk 0:00:16]} 34. Kh4 {[%clk 0:00:12]}  Rxc1 {[%clk 0:00:16]} 35. Qxc1 {[%clk 0:00:12]}  Rb8 {[%clk 0:00:16]} 36. Qa3 {[%clk 0:00:06]}  Rb1 {[%clk 0:00:13]} 37. Ne5 {[%clk 0:00:05]}  Rh1+ {[%clk 0:00:10]} 38. Kg3 {[%clk 0:00:03]}  Rh3+ {[%clk 0:00:11]} 0-1


[Site "https://www.chess.com"]

[Event "Titled Tuesday Blitz March 29 Early 2022"]
[White "Yanayt, Eugene"]
[Black "Ezat, Mohamed"]
[WhiteFideId "2020165"]
[BlackFideId "10600906"]
[WhiteElo "2388"]
[BlackElo "2570"]
[Result "0-1"]
[Round "11"]
[TimeControl "180+1"]
[Date "2022.03.30"]
[WhiteClock "0:00:26"]
[BlackClock "0:00:40"]

1. d4 {[%clk 0:02:54]}  Nf6 {[%clk 0:02:12]} 2. c4 {[%clk 0:02:50]}  g6 {[%clk 0:02:12]} 3. Nc3 {[%clk 0:02:40]}  Bg7 {[%clk 0:02:13]} 4. e4 {[%clk 0:02:40]}  d6 {[%clk 0:02:13]} 5. Nf3 {[%clk 0:02:39]}  O-O {[%clk 0:02:13]} 6. Be2 {[%clk 0:02:38]}  e5 {[%clk 0:02:13]} 7. O-O {[%clk 0:02:37]}  Nc6 {[%clk 0:02:14]} 8. d5 {[%clk 0:02:37]}  Ne7 {[%clk 0:02:14]} 9. Ne1 {[%clk 0:02:37]}  Nd7 {[%clk 0:02:14]} 10. Be3 {[%clk 0:02:37]}  f5 {[%clk 0:02:15]} 11. f3 {[%clk 0:02:37]}  f4 {[%clk 0:02:15]} 12. Bf2 {[%clk 0:02:38]}  g5 {[%clk 0:02:16]} 13. a4 {[%clk 0:02:37]}  Nf6 {[%clk 0:02:13]} 14. c5 {[%clk 0:02:37]}  Ng6 {[%clk 0:02:13]} 15. a5 {[%clk 0:02:35]}  Rf7 {[%clk 0:02:12]} 16. cxd6 {[%clk 0:02:33]}  cxd6 {[%clk 0:02:11]} 17. Nb5 {[%clk 0:02:33]}  g4 {[%clk 0:02:07]} 18. Bxa7 {[%clk 0:02:29]}  g3 {[%clk 0:02:04]} 19. Bb6 {[%clk 0:02:27]}  Qe7 {[%clk 0:02:03]} 20. h3 {[%clk 0:02:01]}  Nh5 {[%clk 0:01:57]} 21. Nc7 {[%clk 0:01:53]}  Bxh3 {[%clk 0:01:52]} 22. gxh3 {[%clk 0:01:51]}  Qh4 {[%clk 0:01:50]} 23. Ng2 {[%clk 0:01:44]}  Qxh3 {[%clk 0:01:49]} 24. Re1 {[%clk 0:01:45]}  Rxc7 {[%clk 0:01:44]} 25. Bb5 {[%clk 0:01:00]}  Rac8 {[%clk 0:00:56]} 26. Ba4 {[%clk 0:00:50]}  Rc5 {[%clk 0:00:47]} 27. Bxc5 {[%clk 0:00:47]}  Rxc5 {[%clk 0:00:45]} 28. Qd2 {[%clk 0:00:26]}  Qh2+ {[%clk 0:00:41]} 29. Kf1 {[%clk 0:00:26]}  Nh4 {[%clk 0:00:40]} 0-1


[Site "https://www.chess.com"]

[Event "Titled Tuesday Blitz March 29 Early 2022"]
[White "Yang, Kaiqi"]
[Black "Czerw, Dawid"]
[WhiteFideId "8604398"]
[BlackFideId "1145746"]
[WhiteElo "2585"]
[BlackElo "2481"]
[Result "1-0"]
[Round "11"]
[TimeControl "180+1"]
[Date "2022.03.30"]
[WhiteClock "0:00:17"]
[BlackClock "0:00:36"]

1. e4 {[%clk 0:03:00]}  c5 {[%clk 0:02:59]} 2. Nc3 {[%clk 0:03:00]}  g6 {[%clk 0:02:56]} 3. d4 {[%clk 0:02:54]}  Bg7 {[%clk 0:02:55]} 4. d5 {[%clk 0:02:48]}  d6 {[%clk 0:02:51]} 5. Nf3 {[%clk 0:02:45]}  a6 {[%clk 0:02:51]} 6. a4 {[%clk 0:02:44]}  Bg4 {[%clk 0:02:51]} 7. Be2 {[%clk 0:02:41]}  Bxf3 {[%clk 0:02:50]} 8. Bxf3 {[%clk 0:02:41]}  Nd7 {[%clk 0:02:51]} 9. O-O {[%clk 0:02:40]}  Ngf6 {[%clk 0:02:51]} 10. Be2 {[%clk 0:02:33]}  O-O {[%clk 0:02:51]} 11. Bg5 {[%clk 0:02:31]}  b5 {[%clk 0:02:50]} 12. axb5 {[%clk 0:02:29]}  axb5 {[%clk 0:02:51]} 13. Bxb5 {[%clk 0:02:23]}  Qb6 {[%clk 0:02:41]} 14. Bxd7 {[%clk 0:02:07]}  Nxd7 {[%clk 0:02:37]} 15. Bxe7 {[%clk 0:02:07]}  Rfe8 {[%clk 0:02:38]} 16. Rxa8 {[%clk 0:01:42]}  Rxa8 {[%clk 0:02:38]} 17. Qe2 {[%clk 0:01:18]}  Qxb2 {[%clk 0:01:56]} 18. Nb5 {[%clk 0:01:15]}  Ra2 {[%clk 0:01:47]} 19. Nxd6 {[%clk 0:01:00]}  Qxc2 {[%clk 0:01:27]} 20. Qxc2 {[%clk 0:00:35]}  Rxc2 {[%clk 0:01:26]} 21. g3 {[%clk 0:00:33]}  Bd4 {[%clk 0:01:20]} 22. Nb5 {[%clk 0:00:32]}  Ne5 {[%clk 0:01:14]} 23. Nxd4 {[%clk 0:00:29]}  cxd4 {[%clk 0:01:15]} 24. Bf6 {[%clk 0:00:25]}  Nf3+ {[%clk 0:00:59]} 25. Kg2 {[%clk 0:00:25]}  Nd2 {[%clk 0:00:56]} 26. Ra1 {[%clk 0:00:18]}  Rc8 {[%clk 0:00:46]} 27. d6 {[%clk 0:00:18]}  Nxe4 {[%clk 0:00:39]} 28. d7 {[%clk 0:00:17]}  Rb8 {[%clk 0:00:38]} 29. d8=Q+ {[%clk 0:00:16]}  Rxd8 {[%clk 0:00:38]} 30. Bxd8 {[%clk 0:00:17]}  d3 {[%clk 0:00:39]} 31. Rd1 {[%clk 0:00:17]}  d2 {[%clk 0:00:36]} 32. Ba5 {[%clk 0:00:17]} 1-0


[Site "https://www.chess.com"]

[Event "Titled Tuesday Blitz March 29 Early 2022"]
[White "Zhao, Jun"]
[Black "Gaehwiler, Gabriel"]
[WhiteFideId "8602522"]
[BlackFideId "1314530"]
[WhiteElo "2547"]
[BlackElo "2383"]
[Result "1-0"]
[Round "11"]
[TimeControl "180+1"]
[Date "2022.03.29"]
[WhiteClock "0:00:04"]
[BlackClock "0:00:05"]

1. Nf3 {[%clk 0:02:58]}  Nf6 {[%clk 0:02:59]} 2. g3 {[%clk 0:02:58]}  b6 {[%clk 0:02:59]} 3. Bg2 {[%clk 0:02:59]}  Bb7 {[%clk 0:02:59]} 4. O-O {[%clk 0:02:59]}  g6 {[%clk 0:02:59]} 5. c4 {[%clk 0:03:00]}  Bg7 {[%clk 0:02:59]} 6. Nc3 {[%clk 0:02:59]}  O-O {[%clk 0:02:59]} 7. d4 {[%clk 0:02:56]}  Ne4 {[%clk 0:02:59]} 8. Nxe4 {[%clk 0:02:49]}  Bxe4 {[%clk 0:03:00]} 9. b3 {[%clk 0:02:49]}  c5 {[%clk 0:02:54]} 10. Bb2 {[%clk 0:02:48]}  Nc6 {[%clk 0:02:54]} 11. e3 {[%clk 0:02:47]}  d5 {[%clk 0:02:48]} 12. Qe2 {[%clk 0:02:33]}  cxd4 {[%clk 0:01:55]} 13. exd4 {[%clk 0:02:19]}  Rc8 {[%clk 0:01:33]} 14. Rfd1 {[%clk 0:02:16]}  Qd7 {[%clk 0:01:29]} 15. Ne5 {[%clk 0:02:05]}  Nxe5 {[%clk 0:01:27]} 16. dxe5 {[%clk 0:01:56]}  Bxg2 {[%clk 0:01:26]} 17. Kxg2 {[%clk 0:01:56]}  e6 {[%clk 0:01:21]} 18. cxd5 {[%clk 0:01:53]}  exd5 {[%clk 0:01:22]} 19. Rd2 {[%clk 0:01:48]}  Rfe8 {[%clk 0:01:00]} 20. Rad1 {[%clk 0:01:45]}  d4 {[%clk 0:00:51]} 21. Rxd4 {[%clk 0:01:40]}  Qc6+ {[%clk 0:00:43]} 22. Rd5 {[%clk 0:00:36]}  f6 {[%clk 0:00:43]} 23. Qe4 {[%clk 0:00:26]}  fxe5 {[%clk 0:00:39]} 24. Re1 {[%clk 0:00:24]}  Re6 {[%clk 0:00:32]} 25. Re2 {[%clk 0:00:20]}  Rce8 {[%clk 0:00:20]} 26. h4 {[%clk 0:00:20]}  Qc7 {[%clk 0:00:19]} 27. a4 {[%clk 0:00:19]}  Qf7 {[%clk 0:00:19]} 28. Red2 {[%clk 0:00:18]}  Rf6 {[%clk 0:00:16]} 29. Bxe5 {[%clk 0:00:11]}  Rfe6 {[%clk 0:00:12]} 30. f4 {[%clk 0:00:11]}  Bxe5 {[%clk 0:00:12]} 31. fxe5 {[%clk 0:00:10]}  R6e7 {[%clk 0:00:13]} 32. Rf2 {[%clk 0:00:09]}  Qe6 {[%clk 0:00:12]} 33. Re2 {[%clk 0:00:08]}  Qf7 {[%clk 0:00:12]} 34. b4 {[%clk 0:00:07]}  Qe6 {[%clk 0:00:12]} 35. b5 {[%clk 0:00:07]}  Rf7 {[%clk 0:00:12]} 36. Rd6 {[%clk 0:00:06]}  Qe7 {[%clk 0:00:12]} 37. Qd5 {[%clk 0:00:05]}  Kh8 {[%clk 0:00:08]} 38. Rd2 {[%clk 0:00:02]}  Qf8 {[%clk 0:00:08]} 39. Rd8 {[%clk 0:00:02]}  Rfe7 {[%clk 0:00:07]} 40. Rxe8 {[%clk 0:00:02]}  Qxe8 {[%clk 0:00:08]} 41. Re2 {[%clk 0:00:03]}  Re6 {[%clk 0:00:09]} 42. Qd4 {[%clk 0:00:03]}  Qe7 {[%clk 0:00:09]} 43. Qe4 {[%clk 0:00:03]}  Kg7 {[%clk 0:00:08]} 44. Qd5 {[%clk 0:00:03]}  Qf7 {[%clk 0:00:08]} 45. Qd4 {[%clk 0:00:03]}  Qe7 {[%clk 0:00:08]} 46. Qe4 {[%clk 0:00:04]}  Qe8 {[%clk 0:00:09]} 47. Qf4 {[%clk 0:00:04]}  Qf7 {[%clk 0:00:09]} 48. Qxf7+ {[%clk 0:00:04]}  Kxf7 {[%clk 0:00:10]} 49. Kf3 {[%clk 0:00:05]}  Re7 {[%clk 0:00:09]} 50. Ke4 {[%clk 0:00:05]}  Rc7 {[%clk 0:00:10]} 51. Kd5 {[%clk 0:00:05]}  Ke7 {[%clk 0:00:09]} 52. Rf2 {[%clk 0:00:04]}  Rc5+ {[%clk 0:00:09]} 53. Kd4 {[%clk 0:00:05]}  Rc2 {[%clk 0:00:09]} 54. Rf6 {[%clk 0:00:04]}  Ra2 {[%clk 0:00:08]} 55. Rc6 {[%clk 0:00:04]}  Rxa4+ {[%clk 0:00:08]} 56. Kd5 {[%clk 0:00:04]}  Rb4 {[%clk 0:00:07]} 57. Rc7+ {[%clk 0:00:05]}  Kd8 {[%clk 0:00:08]} 58. Rxh7 {[%clk 0:00:04]}  Rxb5+ {[%clk 0:00:05]} 59. Kd6 {[%clk 0:00:05]}  Ke8 {[%clk 0:00:05]} 60. e6 {[%clk 0:00:04]}  Kf8 {[%clk 0:00:05]} 61. e7+ {[%clk 0:00:04]}  Kg8 {[%clk 0:00:04]} 62. e8=Q+ {[%clk 0:00:04]}  Kxh7 {[%clk 0:00:05]} 63. Qxb5 {[%clk 0:00:04]} 1-0


[Site "https://www.chess.com"]